[Event "RUS-ch Rapid Men 2018"]
[Site "Sochi"]
[Date "2018.10.06"]
[Round "9"]
[White "Truskavetsky, Alexandr"]
[Black "Moiseenko, Vadim"]
[Result "0-1"]
[ECO "A50"]
[WhiteElo "2393"]
[BlackElo "2492"]
[Annotator "ChessBase"]
[PlyCount "96"]
[EventDate "2018.10.05"]
[EventType "swiss"]
[EventCountry "RUS"]
[SourceTitle "playchess.com"]
[Source "ChessBase"]
[SourceQuality "1"]
[TimeControl "900+10"]

1. d4 {[%emt 0:00:10]} Nf6 {[%emt 0:00:32]} 2. c4 {[%emt 0:00:03]} b6 {[%emt 0:00:01]} 3. Nc3 {[%emt 0:00:39]} Bb7 {[%emt 0:00:01]} 4. Nf3 {[%emt 0:00:14]} e6 {[%emt 0:00:02]} 5. e3 {[%emt 0:00:36]} d5 {[%emt 0:00:19]} 6. cxd5 {[%emt 0:00:23]} Nxd5 {[%emt 0:00:05]} 7. Bd3 {[%emt 0:00:28]} Nd7 {[%emt 0:00:13]} 8. O-O {[%emt 0:00:14]} Be7 {[%emt 0:00:05]} 9. e4 {[%emt 0:00:30]} Nxc3 {[%emt 0:00:04]} 10. bxc3 {[%emt 0:00:01]} c5 {[%emt 0:00:28]} 11. d5 {[%emt 0:01:17]} exd5 {[%emt 0:00:23]} 12. exd5 {[%emt 0:00:02]} O-O {[%emt 0:01:52]} 13. c4 {[%emt 0:00:33]} Bf6 {[%emt 0:00:04]} 14. Rb1 {[%emt 0:00:02]} Re8 {[%emt 0:00:05]} 15. Bf4 {[%emt 0:00:58]} Nf8 {[%emt 0:00:18]} 16. a4 {[%emt 0:00:27]} Bc8 {[%emt 0:00:07]} 17. h3 {[%emt 0:01:07]} Bd7 {[%emt 0:00:19]} 18. Qc2 Qc8 {[%emt 0:00:14]} 19. a5 {[%emt 0:01:56]} bxa5 {[%emt 0:00:04]} 20. Bg5 {[%emt 0:02:31]} Qd8 {[%emt 0:00:46]} 21. Bf4 Ng6 22. Bg3 {[%emt 0:00:45]} Qc8 {[%emt 0:00:13]} 23. h4 {[%emt 0:00:24]} a4 {[%emt 0:01:34]} 24. h5 {[%emt 0:00:16]} Nf8 {[%emt 0:00:01]} 25. Nd2 {[%emt 0:00:24]} Bd4 {[%emt 0:01:38]} 26. Nf3 {[%emt 0:00:21]} Bf6 {[%emt 0:00:03]} 27. Nd2 {[%emt 0:00:01]} Qa6 {[%emt 0:00:41]} 28. Ne4 {[%emt 0:00:25]} Bd4 {[%emt 0:00:02]} 29. Nd6 {[%emt 0:00:29]} Re7 {[%emt 0:00:37]} 30. Nb5 {[%emt 0:00:40]} Bxb5 {[%emt 0:00:51]} 31. cxb5 {[%emt 0:00:08]} Qh6 {[%emt 0:00:28]} 32. Qxa4 {[%emt 0:01:02]} Rd8 {[%emt 0:00:02]} 33. d6 {[%emt 0:00:14]} Rxd6 {[%emt 0:00:39]} 34. Bxd6 {[%emt 0:00:18]} Qxd6 {[%emt 0:00:01]} 35. Qc2 {[%emt 0:00:11]} Re5 {[%emt 0:00:40]} 36. Bf5 {[%emt 0:02:06]} Qe7 {[%emt 0:01:00]} 37. Rb3 {[%emt 0:00:33]} Re2 {[%emt 0:00:21]} 38. Qd1 {[%emt 0:00:27]} Qe5 {[%emt 0:01:34]} 39. Bg4 {[%emt 0:00:12]} Re4 {[%emt 0:00:07]} 40. Rh3 {[%emt 0:00:14]} c4 {[%emt 0:01:20]} 41. Bf3 {[%emt 0:00:10]} Rf4 {[%emt 0:00:02]} 42. Bc6 {[%emt 0:00:03]} Ne6 {[%emt 0:00:21]} 43. Rf3 {[%emt 0:00:18]} Rh4 {[%emt 0:00:22]} 44. g3 {[%emt 0:00:03]} Rxh5 {[%emt 0:00:13]} 45. Re1 {[%emt 0:00:11]} Qc5 {[%emt 0:00:01]} 46. Rxf7 {[%emt 0:00:13]} Kxf7 {[%emt 0:00:08]} 47. Qf3+ {[%emt 0:00:17]} Rf5 {[%emt 0:00:03]} 48. Be8+ {[%emt 0:00:10]} Kxe8 {[%emt 0:00:31]} 0-1

[Event "RUS-ch Rapid Men 2018"]
[Site "Sochi"]
[Date "2018.10.06"]
[Round "9"]
[White "Slavin, Alexey"]
[Black "Vastrukhin, Oleg"]
[Result "1-0"]
[ECO "A40"]
[WhiteElo "2364"]
[BlackElo "2413"]
[Annotator "NA"]
[PlyCount "119"]
[EventDate "2018.10.05"]
[EventType "swiss"]
[EventCountry "RUS"]
[SourceTitle "playchess.com"]
[Source "ChessBase"]
[SourceQuality "1"]
[TimeControl "900+10"]

1. d4 {[%emt 0:01:29]} g6 {[%emt 0:00:00]} 2. Nf3 {[%emt 0:00:07]} Bg7 {[%emt 0:00:00]} 3. c4 {[%emt 0:00:02]} d6 {[%emt 0:00:00]} 4. Nc3 {[%emt 0:00:03]} e5 {[%emt 0:00:00]} 5. dxe5 {[%emt 0:01:12]} dxe5 {[%emt 0:00:00]} 6. Qxd8+ {[%emt 0:00:02]} Kxd8 {[%emt 0:00:00]} 7. Bg5+ {[%emt 0:00:02]} f6 8. O-O-O+ {[%emt 0:00:12]} Bd7 {[%emt 0:01:34]} 9. Bh4 g5 {[%emt 0:00:26]} 10. Bg3 {[%emt 0:01:19]} h5 {[%emt 0:00:56]} 11. h3 {[%emt 0:01:15]} Nh6 {[%emt 0:00:15]} 12. e4 {[%emt 0:00:26]} h4 {[%emt 0:00:40]} 13. Bh2 {[%emt 0:00:04]} c6 {[%emt 0:00:01]} 14. Nd2 {[%emt 0:02:11]} Na6 {[%emt 0:01:02]} 15. Nb3 {[%emt 0:00:26]} Kc7 {[%emt 0:00:25]} 16. Be2 {[%emt 0:01:54]} Rad8 {[%emt 0:00:13]} 17. c5 {[%emt 0:01:05]} Bf8 {[%emt 0:00:16]} 18. Bxa6 {[%emt 0:00:04]} bxa6 {[%emt 0:00:01]} 19. f3 {[%emt 0:00:22]} Be7 {[%emt 0:00:18]} 20. Bg1 {[%emt 0:02:17]} Be6 {[%emt 0:00:34]} 21. Bf2 {[%emt 0:00:08]} Nf7 {[%emt 0:00:29]} 22. Na5 {[%emt 0:00:37]} Rxd1+ {[%emt 0:01:02]} 23. Rxd1 {[%emt 0:00:01]} Rb8 {[%emt 0:00:03]} 24. Nd5+ {[%emt 0:01:08]} cxd5 {[%emt 0:00:05]} 25. exd5 {[%emt 0:00:02]} Bxd5 {[%emt 0:02:01]} 26. Rxd5 {[%emt 0:00:03]} Rb5 {[%emt 0:00:02]} 27. Nb3 {[%emt 0:01:38]} Nd8 {[%emt 0:00:02]} 28. Kc2 {[%emt 0:00:14]} Ne6 {[%emt 0:00:02]} 29. Be3 {[%emt 0:00:51]} Kc6 {[%emt 0:04:49]} 30. Rd3 {[%emt 0:00:02]} Nf4 {[%emt 0:00:52]} 31. Bxf4 {[%emt 0:00:22]} gxf4 {[%emt 0:00:00]} 32. Kc3 {[%emt 0:00:24]} Bxc5 {[%emt 0:00:16]} 33. Rd8 {[%emt 0:00:02]} Be7 {[%emt 0:02:00]} 34. Rh8 {[%emt 0:00:02]} a5 {[%emt 0:00:01]} 35. Rxh4 {[%emt 0:00:14]} a4 {[%emt 0:00:01]} 36. Na1 {[%emt 0:00:27]} Rc5+ {[%emt 0:00:51]} 37. Kd2 {[%emt 0:00:03]} Rd5+ {[%emt 0:00:03]} 38. Kc3 {[%emt 0:00:01]} Rc5+ {[%emt 0:00:36]} 39. Kd2 {[%emt 0:00:02]} Rb5 {[%emt 0:00:01]} 40. Kc3 {[%emt 0:00:05]} f5 {[%emt 0:00:12]} 41. Rh7 {[%emt 0:00:20]} Rb7 {[%emt 0:00:12]} 42. Rh6+ {[%emt 0:00:09]} Kd5 {[%emt 0:00:03]} 43. Nc2 {[%emt 0:00:02]} Bc5 {[%emt 0:00:23]} 44. Rh8 {[%emt 0:00:39]} Rg7 {[%emt 0:00:09]} 45. Rd8+ {[%emt 0:00:04]} Ke6 {[%emt 0:00:05]} 46. Rd2 {[%emt 0:00:03]} e4 {[%emt 0:00:09]} 47. Re2 {[%emt 0:00:09]} e3 {[%emt 0:00:04]} 48. Ne1 {[%emt 0:00:04]} Rc7 {[%emt 0:00:22]} 49. Nd3 {[%emt 0:00:03]} Bd6+ {[%emt 0:00:12]} 50. Kd4 {[%emt 0:00:01]} Rd7 {[%emt 0:00:02]} 51. Kc4 {[%emt 0:00:03]} Bf8 {[%emt 0:00:20]} 52. Nxf4+ {[%emt 0:00:02]} Kf7 {[%emt 0:00:02]} 53. Nd5 {[%emt 0:00:25]} Bh6 {[%emt 0:00:19]} 54. f4 Rb7 55. b4 {[%emt 0:00:06]} axb3 {[%emt 0:00:05]} 56. axb3 {[%emt 0:00:01]} a5 {[%emt 0:00:34]} 57. Rxe3 {[%emt 0:00:03]} Bxf4 {[%emt 0:00:01]} 58. Nxf4 {[%emt 0:00:18]} Rb4+ {[%emt 0:00:00]} 59. Kc3 {[%emt 0:00:27]} Rxf4 {[%emt 0:00:09]} 60. Rf3 {[%emt 0:00:01]} 1-0

[Event "RUS-ch Rapid Men 2018"]
[Site "Sochi"]
[Date "2018.10.06"]
[Round "9"]
[White "Jary, Sergey"]
[Black "Triapishko, Alexandr"]
[Result "1/2-1/2"]
[ECO "A45"]
[WhiteElo "2286"]
[BlackElo "2508"]
[Annotator "ChessBase"]
[PlyCount "70"]
[EventDate "2018.10.05"]
[EventType "swiss"]
[EventCountry "RUS"]
[SourceTitle "playchess.com"]
[Source "ChessBase"]
[SourceQuality "1"]
[TimeControl "900+10"]

1. d4 {[%emt 0:00:55]} Nf6 {[%emt 0:00:00]} 2. g3 {[%emt 0:00:02]} g6 {[%emt 0:01:09]} 3. Bg2 {[%emt 0:00:06]} Bg7 {[%emt 0:00:02]} 4. e4 {[%emt 0:00:02]} d6 {[%emt 0:00:08]} 5. Ne2 {[%emt 0:00:07]} O-O {[%emt 0:00:02]} 6. O-O {[%emt 0:00:07]} Nc6 {[%emt 0:00:27]} 7. h3 {[%emt 0:00:48]} e5 {[%emt 0:00:31]} 8. d5 {[%emt 0:00:25]} Ne7 {[%emt 0:00:33]} 9. c4 {[%emt 0:00:14]} c6 {[%emt 0:00:49]} 10. Nbc3 {[%emt 0:00:22]} cxd5 {[%emt 0:00:09]} 11. cxd5 {[%emt 0:00:08]} Qa5 {[%emt 0:03:45]} 12. Rb1 {[%emt 0:00:24]} Bd7 {[%emt 0:00:29]} 13. Qd3 {[%emt 0:00:10]} Rfc8 {[%emt 0:01:15]} 14. Be3 {[%emt 0:00:25]} a6 {[%emt 0:02:05]} 15. Rfc1 {[%emt 0:01:27]} Ne8 {[%emt 0:00:36]} 16. b4 {[%emt 0:00:10]} Qd8 {[%emt 0:01:00]} 17. a4 {[%emt 0:00:21]} f5 {[%emt 0:00:26]} 18. f3 {[%emt 0:00:32]} Nf6 {[%emt 0:00:35]} 19. a5 {[%emt 0:00:26]} Qe8 {[%emt 0:01:13]} 20. Nd1 {[%emt 0:01:24]} Nh5 {[%emt 0:01:37]} 21. Qd2 {[%emt 0:00:16]} Nxg3 {[%emt 0:00:57]} 22. Nxg3 {[%emt 0:00:03]} f4 {[%emt 0:00:01]} 23. Bf2 {[%emt 0:00:06]} fxg3 {[%emt 0:00:03]} 24. Bxg3 {[%emt 0:00:01]} Qf8 {[%emt 0:00:21]} 25. Bh4 {[%emt 0:00:07]} Bh6 {[%emt 0:00:10]} 26. Bg5 {[%emt 0:00:01]} Bxg5 {[%emt 0:00:02]} 27. Qxg5 {[%emt 0:00:01]} h6 {[%emt 0:00:38]} 28. Qg3 {[%emt 0:00:05]} g5 {[%emt 0:00:15]} 29. h4 {[%emt 0:00:24]} Qf4 {[%emt 0:00:13]} 30. Qxf4 {[%emt 0:00:01]} exf4 {[%emt 0:00:05]} 31. hxg5 {[%emt 0:00:15]} hxg5 {[%emt 0:00:01]} 32. Nb2 {[%emt 0:00:00]} Rxc1+ {[%emt 0:00:27]} 33. Rxc1 {[%emt 0:00:01]} Ng6 {[%emt 0:00:14]} 34. Rc7 {[%emt 0:00:11]} Bb5 {[%emt 0:00:10]} 35. Bf1 {[%emt 0:00:04]} Ne5 {[%emt 0:00:08]} 1/2-1/2

[Event "RUS-ch Rapid Men 2018"]
[Site "Sochi"]
[Date "2018.10.06"]
[Round "9"]
[White "Linker, Mikhail"]
[Black "Dzhumagaliev, Yan"]
[Result "0-1"]
[ECO "A37"]
[WhiteElo "2269"]
[BlackElo "2410"]
[Annotator "NA"]
[PlyCount "76"]
[EventDate "2018.10.05"]
[EventType "swiss"]
[EventCountry "RUS"]
[SourceTitle "playchess.com"]
[Source "ChessBase"]
[SourceQuality "1"]
[TimeControl "900+10"]

1. Nf3 {[%emt 0:00:29]} c5 {[%emt 0:00:00]} 2. c4 {[%emt 0:00:07]} Nc6 {[%emt 0:00:00]} 3. g3 {[%emt 0:00:09]} g6 {[%emt 0:00:00]} 4. Bg2 {[%emt 0:00:02]} Bg7 {[%emt 0:00:01]} 5. Nc3 {[%emt 0:00:01]} e5 {[%emt 0:00:03]} 6. O-O {[%emt 0:00:26]} Nge7 {[%emt 0:00:01]} 7. e3 {[%emt 0:00:13]} O-O {[%emt 0:00:48]} 8. d4 {[%emt 0:00:20]} cxd4 {[%emt 0:00:17]} 9. exd4 {[%emt 0:00:01]} Nxd4 {[%emt 0:01:38]} 10. Nxd4 {[%emt 0:00:03]} exd4 {[%emt 0:00:01]} 11. Nb5 {[%emt 0:00:25]} Nf5 {[%emt 0:01:17]} 12. Bf4 {[%emt 0:00:35]} d6 {[%emt 0:00:09]} 13. Be4 {[%emt 0:03:23]} a6 {[%emt 0:01:22]} 14. Bxf5 {[%emt 0:00:05]} Bxf5 {[%emt 0:00:01]} 15. Nxd4 {[%emt 0:05:25]} Bh3 {[%emt 0:00:03]} 16. Re1 {[%emt 0:00:02]} Rc8 {[%emt 0:00:55]} 17. Rc1 {[%emt 0:00:17]} Qb6 {[%emt 0:00:10]} 18. Nb3 {[%emt 0:00:05]} Bxb2 {[%emt 0:01:39]} 19. Rc2 {[%emt 0:00:06]} Qc6 {[%emt 0:00:46]} 20. f3 {[%emt 0:00:01]} Bg7 {[%emt 0:01:16]} 21. Kf2 {[%emt 0:03:04]} Bf5 {[%emt 0:01:19]} 22. Rd2 {[%emt 0:01:49]} Qxc4 {[%emt 0:00:03]} 23. Rxd6 {[%emt 0:00:05]} a5 {[%emt 0:01:37]} 24. Nd4 {[%emt 0:00:13]} Qxa2+ {[%emt 0:02:52]} 25. Re2 {[%emt 0:00:03]} Qb1 {[%emt 0:00:03]} 26. Nxf5 {[%emt 0:00:16]} Qxf5 {[%emt 0:00:01]} 27. Rd5 {[%emt 0:00:09]} Qf6 {[%emt 0:00:40]} 28. Kg2 {[%emt 0:00:21]} Qa6 {[%emt 0:00:10]} 29. Rd6 {[%emt 0:00:11]} Qc4 {[%emt 0:00:10]} 30. Rb6 {[%emt 0:01:18]} a4 {[%emt 0:00:01]} 31. Rxb7 {[%emt 0:00:03]} a3 {[%emt 0:00:01]} 32. Ra7 {[%emt 0:00:03]} Ra8 {[%emt 0:00:01]} 33. Re4 {[%emt 0:00:24]} Qxe4 {[%emt 0:00:06]} 34. fxe4 {[%emt 0:00:08]} Rxa7 {[%emt 0:00:01]} 35. e5 {[%emt 0:00:16]} a2 {[%emt 0:00:06]} 36. Qa1 {[%emt 0:00:01]} Rb8 {[%emt 0:00:09]} 37. Bg5 {[%emt 0:00:14]} Rb1 {[%emt 0:00:15]} 38. Qd4 {[%emt 0:00:03]} Ra8 {[%emt 0:00:04]} 0-1

[Event "RUS-ch Rapid Men 2018"]
[Site "Sochi"]
[Date "2018.10.06"]
[Round "10"]
[White "Sakaev, Konstantin"]
[Black "Gabrielian, Artur"]
[Result "0-1"]
[ECO "A72"]
[WhiteElo "2584"]
[BlackElo "2499"]
[Annotator "ChessBase"]
[PlyCount "80"]
[EventDate "2018.10.05"]
[EventType "swiss"]
[EventCountry "RUS"]
[SourceTitle "playchess.com"]
[Source "ChessBase"]
[SourceQuality "1"]
[TimeControl "900+10"]

1. d4 {[%emt 0:00:00]} Nf6 {[%emt 0:00:00]} 2. c4 {[%emt 0:00:00]} c5 {[%emt 0:00:00]} 3. d5 {[%emt 0:00:00]} e6 {[%emt 0:00:00]} 4. Nc3 {[%emt 0:00:00]} exd5 {[%emt 0:00:00]} 5. cxd5 {[%emt 0:00:00]} d6 {[%emt 0:00:00]} 6. e4 {[%emt 0:00:11]} g6 {[%emt 0:00:00]} 7. Nf3 {[%emt 0:00:14]} Bg7 {[%emt 0:00:00]} 8. Be2 {[%emt 0:00:02]} O-O {[%emt 0:00:01]} 9. Be3 {[%emt 0:00:03]} Bg4 {[%emt 0:01:13]} 10. Nd2 {[%emt 0:00:02]} Bxe2 {[%emt 0:00:04]} 11. Qxe2 {[%emt 0:00:02]} Nbd7 {[%emt 0:00:09]} 12. O-O {[%emt 0:00:06]} Re8 {[%emt 0:00:03]} 13. h3 {[%emt 0:00:19]} a6 {[%emt 0:00:04]} 14. a4 {[%emt 0:00:01]} Rb8 {[%emt 0:00:09]} 15. a5 {[%emt 0:00:35]} Nh5 {[%emt 0:01:33]} 16. g4 {[%emt 0:01:58]} Nhf6 {[%emt 0:00:01]} 17. Bf4 {[%emt 0:00:42]} Ne5 {[%emt 0:01:22]} 18. Bg3 {[%emt 0:00:11]} g5 {[%emt 0:03:03]} 19. Kg2 {[%emt 0:04:10]} Nfd7 {[%emt 0:00:39]} 20. Ra2 {[%emt 0:04:03]} h6 {[%emt 0:04:39]} 21. Nd1 {[%emt 0:00:03]} Ng6 {[%emt 0:00:39]} 22. Bxd6 {[%emt 0:01:29]} Nde5 {[%emt 0:01:08]} 23. Bxe5 {[%emt 0:00:01]} Bxe5 {[%emt 0:00:01]} 24. Kh1 {[%emt 0:00:17]} Bc7 {[%emt 0:00:04]} 25. Ne3 {[%emt 0:00:50]} Bxa5 {[%emt 0:00:31]} 26. f3 {[%emt 0:02:24]} Nf4 {[%emt 0:00:13]} 27. Qh2 {[%emt 0:00:03]} Bc7 {[%emt 0:00:13]} 28. Qf2 {[%emt 0:00:39]} Nxh3 {[%emt 0:00:08]} 29. Qg2 {[%emt 0:00:06]} Nf4 {[%emt 0:00:02]} 30. Qf2 {[%emt 0:00:04]} Qf6 {[%emt 0:01:08]} 31. Nf5 {[%emt 0:00:20]} h5 {[%emt 0:00:17]} 32. gxh5 {[%emt 0:00:08]} Nxh5 {[%emt 0:00:04]} 33. Rg1 {[%emt 0:00:12]} Bf4 {[%emt 0:00:02]} 34. Nc4 {[%emt 0:00:25]} Ng7 {[%emt 0:00:33]} 35. Nce3 {[%emt 0:00:31]} Nxf5 {[%emt 0:00:49]} 36. Nxf5 {[%emt 0:00:02]} Rbd8 {[%emt 0:00:08]} 37. Qh4 {[%emt 0:00:31]} Qg6 {[%emt 0:00:41]} 38. Qg4 {[%emt 0:00:11]} Qh7+ {[%emt 0:00:19]} 39. Kg2 {[%emt 0:00:01]} Qh2+ {[%emt 0:00:11]} 40. Kf1 {[%emt 0:00:01]} Rxd5 {[%emt 0:00:03]} 0-1

[Event "RUS-ch Rapid Men 2018"]
[Site "Sochi"]
[Date "2018.10.06"]
[Round "10"]
[White "Pridorozhni, Aleksei"]
[Black "Slavin, Alexey"]
[Result "1-0"]
[ECO "A36"]
[WhiteElo "2574"]
[BlackElo "2364"]
[Annotator "RC"]
[PlyCount "43"]
[EventDate "2018.10.05"]
[EventType "swiss"]
[EventCountry "RUS"]
[SourceTitle "playchess.com"]
[Source "ChessBase"]
[SourceQuality "1"]
[TimeControl "900+10"]

1. c4 {[%emt 0:00:00]} c5 {[%emt 0:00:00]} 2. Nc3 {[%emt 0:00:00]} Nc6 {[%emt 0:00:00]} 3. g3 {[%emt 0:00:00]} g6 {[%emt 0:00:00]} 4. Bg2 {[%emt 0:00:04]} Bg7 {[%emt 0:00:01]} 5. d3 {[%emt 0:00:04]} d6 {[%emt 0:00:42]} 6. h4 {[%emt 0:00:15]} h6 {[%emt 0:00:18]} 7. Bd2 {[%emt 0:00:17]} e5 {[%emt 0:00:15]} 8. a3 {[%emt 0:00:19]} f5 {[%emt 0:00:49]} 9. b4 {[%emt 0:00:14]} Nf6 {[%emt 0:00:25]} 10. Rb1 {[%emt 0:00:04]} O-O {[%emt 0:00:41]} 11. Nh3 {[%emt 0:00:55]} f4 {[%emt 0:01:07]} 12. gxf4 {[%emt 0:00:28]} Nh5 {[%emt 0:00:02]} 13. bxc5 {[%emt 0:00:38]} dxc5 {[%emt 0:00:41]} 14. Nd5 {[%emt 0:00:05]} Kh8 {[%emt 0:04:27]} 15. fxe5 {[%emt 0:00:52]} Qxh4 {[%emt 0:00:25]} 16. Nhf4 {[%emt 0:04:14]} Nxf4 {[%emt 0:00:06]} 17. Bxf4 {[%emt 0:00:37]} Qg4 {[%emt 0:02:28]} 18. Bf3 {[%emt 0:00:04]} Qf5 {[%emt 0:00:03]} 19. Be4 {[%emt 0:00:30]} Qf7 {[%emt 0:00:02]} 20. Bxh6 {[%emt 0:00:21]} Nxe5 {[%emt 0:01:44]} 21. Bg5+ {[%emt 0:00:09]} Kg8 {[%emt 0:00:18]} 22. Ne7+ {[%emt 0:00:03]} 1-0

[Event "RUS-ch Rapid Men 2018"]
[Site "Sochi"]
[Date "2018.10.06"]
[Round "10"]
[White "Krylov, Mikhail"]
[Black "Iljiushenok, Ilia"]
[Result "1-0"]
[ECO "D85"]
[WhiteElo "2476"]
[BlackElo "2539"]
[Annotator "RC"]
[PlyCount "87"]
[EventDate "2018.10.05"]
[EventType "swiss"]
[EventCountry "RUS"]
[SourceTitle "playchess.com"]
[Source "ChessBase"]
[SourceQuality "1"]
[TimeControl "900+10"]

1. d4 {[%emt 0:00:00]} Nf6 {[%emt 0:00:00]} 2. c4 {[%emt 0:00:00]} g6 {[%emt 0:00:00]} 3. Nc3 {[%emt 0:00:00]} d5 {[%emt 0:00:03]} 4. cxd5 {[%emt 0:00:01]} Nxd5 {[%emt 0:00:02]} 5. e4 {[%emt 0:00:02]} Nxc3 {[%emt 0:00:01]} 6. bxc3 {[%emt 0:00:02]} Bg7 {[%emt 0:00:01]} 7. Nf3 {[%emt 0:00:06]} c5 {[%emt 0:00:06]} 8. Rb1 {[%emt 0:00:06]} O-O {[%emt 0:00:32]} 9. Be2 {[%emt 0:00:02]} b6 {[%emt 0:02:05]} 10. O-O {[%emt 0:00:14]} Bb7 {[%emt 0:00:01]} 11. Qd3 {[%emt 0:00:07]} Nd7 {[%emt 0:01:08]} 12. d5 {[%emt 0:01:32]} c4 {[%emt 0:00:18]} 13. Qxc4 {[%emt 0:03:20]} Nc5 {[%emt 0:00:15]} 14. Qb4 {[%emt 0:00:12]} e6 {[%emt 0:01:32]} 15. Be3 {[%emt 0:01:25]} Rc8 {[%emt 0:00:01]} 16. Rfd1 {[%emt 0:00:18]} Qe7 {[%emt 0:05:26]} 17. c4 {[%emt 0:00:43]} Rfe8 {[%emt 0:00:24]} 18. Nd2 {[%emt 0:04:11]} f5 {[%emt 0:00:15]} 19. exf5 {[%emt 0:00:50]} gxf5 {[%emt 0:00:13]} 20. Bf3 {[%emt 0:00:28]} Qf6 {[%emt 0:04:52]} 21. Nb3 {[%emt 0:00:21]} Bf8 {[%emt 0:00:38]} 22. Nxc5 {[%emt 0:00:52]} Bxc5 {[%emt 0:00:01]} 23. Bxc5 {[%emt 0:00:03]} Rxc5 {[%emt 0:00:01]} 24. Qa4 {[%emt 0:00:11]} Ra8 {[%emt 0:00:13]} 25. Qd7 {[%emt 0:00:09]} Rb8 {[%emt 0:00:12]} 26. Rb3 {[%emt 0:02:13]} e5 {[%emt 0:00:45]} 27. Be2 {[%emt 0:00:11]} Kh8 {[%emt 0:00:07]} 28. Rh3 {[%emt 0:00:09]} h6 {[%emt 0:00:02]} 29. Rh5 Bc8 30. Qxa7 {[%emt 0:01:01]} Rb7 {[%emt 0:00:01]} 31. Qa4 {[%emt 0:00:14]} Rg7 {[%emt 0:00:08]} 32. g3 {[%emt 0:00:06]} Bd7 {[%emt 0:00:01]} 33. Qb4 {[%emt 0:00:16]} Be8 {[%emt 0:00:20]} 34. Rh3 {[%emt 0:00:13]} f4 {[%emt 0:00:05]} 35. d6 {[%emt 0:00:15]} Rc6 {[%emt 0:00:20]} 36. Bf1 {[%emt 0:00:33]} Bd7 {[%emt 0:00:01]} 37. Bg2 {[%emt 0:00:07]} f3 {[%emt 0:00:00]} 38. Bf1 {[%emt 0:00:07]} Rg6 {[%emt 0:00:32]} 39. Rh5 {[%emt 0:00:08]} Bg4 {[%emt 0:00:20]} 40. d7 {[%emt 0:00:03]} Rg8 {[%emt 0:00:09]} 41. Rxh6+ {[%emt 0:00:13]} Qxh6 {[%emt 0:00:01]} 42. d8=Q {[%emt 0:00:02]} Rxd8 {[%emt 0:00:24]} 43. Rxd8+ {[%emt 0:00:02]} Kh7 {[%emt 0:00:01]} 44. Bd3+ {[%emt 0:00:09]} 1-0

[Event "RUS-ch Rapid Men 2018"]
[Site "Sochi"]
[Date "2018.10.06"]
[Round "10"]
[White "Chekhov, Sergei"]
[Black "Demidov, Mikhail"]
[Result "0-1"]
[ECO "B03"]
[WhiteElo "2463"]
[BlackElo "2514"]
[Annotator "ChessBase"]
[PlyCount "104"]
[EventDate "2018.10.05"]
[EventType "swiss"]
[EventCountry "RUS"]
[SourceTitle "playchess.com"]
[Source "ChessBase"]
[SourceQuality "1"]
[TimeControl "900+10"]

1. e4 {[%emt 0:00:00]} Nf6 {[%emt 0:00:00]} 2. e5 {[%emt 0:00:00]} Nd5 {[%emt 0:00:00]} 3. d4 {[%emt 0:00:01]} d6 {[%emt 0:00:00]} 4. exd6 {[%emt 0:00:01]} exd6 {[%emt 0:00:00]} 5. Nf3 {[%emt 0:00:10]} Be7 {[%emt 0:00:01]} 6. Bd3 {[%emt 0:00:18]} Nb4 {[%emt 0:00:09]} 7. Be2 {[%emt 0:00:09]} Bf5 {[%emt 0:00:16]} 8. Na3 {[%emt 0:00:03]} O-O {[%emt 0:00:14]} 9. O-O {[%emt 0:00:02]} Bf6 {[%emt 0:00:20]} 10. c3 {[%emt 0:00:14]} Nd5 {[%emt 0:00:08]} 11. Nc4 {[%emt 0:01:46]} Re8 {[%emt 0:00:40]} 12. Re1 {[%emt 0:00:05]} Nc6 {[%emt 0:00:19]} 13. Qb3 {[%emt 0:00:13]} Nb6 {[%emt 0:00:29]} 14. Ne3 {[%emt 0:00:20]} Be4 {[%emt 0:00:16]} 15. Bd2 {[%emt 0:00:37]} a6 {[%emt 0:00:26]} 16. Ng4 {[%emt 0:00:45]} Bf5 {[%emt 0:01:34]} 17. h3 {[%emt 0:00:48]} Be7 {[%emt 0:00:59]} 18. Bf1 {[%emt 0:00:07]} Bf8 {[%emt 0:00:35]} 19. Rxe8 {[%emt 0:02:08]} Qxe8 {[%emt 0:00:02]} 20. Re1 {[%emt 0:00:02]} Qd7 {[%emt 0:00:12]} 21. Ne3 {[%emt 0:00:03]} Be4 {[%emt 0:00:53]} 22. Ng5 {[%emt 0:00:12]} Bg6 {[%emt 0:00:01]} 23. Nd5 {[%emt 0:02:09]} Nxd5 {[%emt 0:01:02]} 24. Qxd5 {[%emt 0:00:01]} Re8 {[%emt 0:00:10]} 25. Re3 {[%emt 0:00:01]} Rxe3 {[%emt 0:00:51]} 26. Bxe3 {[%emt 0:00:02]} Qe8 {[%emt 0:00:05]} 27. Qb3 {[%emt 0:00:06]} Nd8 {[%emt 0:00:41]} 28. a4 {[%emt 0:00:20]} Qd7 {[%emt 0:01:26]} 29. Bc4 {[%emt 0:00:24]} c6 {[%emt 0:00:42]} 30. Be2 {[%emt 0:00:03]} Bf5 {[%emt 0:00:23]} 31. Qb6 {[%emt 0:00:24]} Be7 {[%emt 0:00:26]} 32. Qa5 {[%emt 0:01:04]} f6 {[%emt 0:00:56]} 33. Nf3 {[%emt 0:00:11]} d5 {[%emt 0:00:03]} 34. b4 {[%emt 0:01:32]} Bd6 {[%emt 0:01:11]} 35. b5 {[%emt 0:00:05]} Bc7 {[%emt 0:00:03]} 36. Qb4 {[%emt 0:00:03]} a5 {[%emt 0:00:16]} 37. Qb3 {[%emt 0:00:09]} Nf7 {[%emt 0:00:36]} 38. c4 {[%emt 0:00:36]} cxb5 {[%emt 0:01:39]} 39. cxb5 {[%emt 0:00:27]} b6 {[%emt 0:00:24]} 40. Nd2 {[%emt 0:00:52]} Qd6 {[%emt 0:00:31]} 41. Bf3 {[%emt 0:00:19]} Be6 {[%emt 0:00:15]} 42. Nb1 {[%emt 0:00:29]} Qb4 {[%emt 0:01:01]} 43. Nd2 {[%emt 0:01:28]} Qxb3 {[%emt 0:00:11]} 44. Nxb3 {[%emt 0:00:00]} Nd6 {[%emt 0:00:10]} 45. Nc5 bxc5 {[%emt 0:01:11]} 46. dxc5 {[%emt 0:00:58]} Nc4 {[%emt 0:00:01]} 47. b6 {[%emt 0:01:54]} Bd8 {[%emt 0:00:17]} 48. Bd4 {[%emt 0:00:07]} Kf8 {[%emt 0:00:20]} 49. Bc3 {[%emt 0:00:03]} Ke8 {[%emt 0:00:17]} 50. Be2 {[%emt 0:00:04]} Kd7 {[%emt 0:00:19]} 51. b7 {[%emt 0:00:57]} Bc7 {[%emt 0:00:06]} 52. f4 {[%emt 0:00:34]} Kc6 {[%emt 0:00:13]} 0-1